[Event "Titled Tuesday Blitz May 9 Early 2023"]
[White "Turzo, Attila"]
[Black "Harshavardhan G B"]
[WhiteFideId "704954"]
[BlackFideId "25059009"]
[WhiteElo "2485"]
[BlackElo "2323"]
[Result "0-1"]
[Round "03"]
[TimeControl "180+2"]
[Date "2023.05.09"]
[WhiteClock "0:01:30"]
[BlackClock "0:02:02"]

1. e4 {[%clk 0:03:00]}  e5 {[%clk 0:02:58]} 2. Nf3 {[%clk 0:03:00]}  Nc6 {[%clk 0:02:58]} 3. d4 {[%clk 0:02:59]}  exd4 {[%clk 0:02:53]} 4. Nxd4 {[%clk 0:03:00]}  Nf6 {[%clk 0:02:46]} 5. Nxc6 {[%clk 0:03:00]}  bxc6 {[%clk 0:02:47]} 6. e5 {[%clk 0:03:01]}  Qe7 {[%clk 0:02:40]} 7. Qe2 {[%clk 0:03:01]}  Nd5 {[%clk 0:02:36]} 8. h4 {[%clk 0:03:02]}  h5 {[%clk 0:02:34]} 9. g3 {[%clk 0:02:49]}  g6 {[%clk 0:02:32]} 10. c4 {[%clk 0:02:31]}  Ba6 {[%clk 0:02:32]} 11. b3 {[%clk 0:02:28]}  Bg7 {[%clk 0:02:29]} 12. Bb2 {[%clk 0:02:29]}  O-O {[%clk 0:02:27]} 13. Bg2 {[%clk 0:02:23]}  d6 {[%clk 0:02:17]} 14. exd6 {[%clk 0:02:18]}  Qxe2+ {[%clk 0:02:16]} 15. Kxe2 {[%clk 0:02:18]}  Bxb2 {[%clk 0:02:17]} 16. Nd2 {[%clk 0:02:06]}  Bxa1 {[%clk 0:02:16]} 17. Rxa1 {[%clk 0:02:04]}  cxd6 {[%clk 0:02:17]} 18. Kd1 {[%clk 0:02:01]}  Nf6 {[%clk 0:02:12]} 19. Bxc6 {[%clk 0:02:00]}  Rad8 {[%clk 0:02:12]} 20. Kc2 {[%clk 0:01:58]}  d5 {[%clk 0:02:12]} 21. c5 {[%clk 0:01:58]}  Rc8 {[%clk 0:02:12]} 22. Ba4 {[%clk 0:01:57]}  Rxc5+ {[%clk 0:02:07]} 23. Kb2 {[%clk 0:01:56]}  Rfc8 {[%clk 0:02:07]} 24. b4 {[%clk 0:01:56]}  R5c7 {[%clk 0:02:07]} 25. Nf3 {[%clk 0:01:54]}  Ne4 {[%clk 0:02:06]} 26. Nd4 {[%clk 0:01:53]}  Nxf2 {[%clk 0:02:06]} 27. b5 {[%clk 0:01:49]}  Bb7 {[%clk 0:02:04]} 28. Bc2 {[%clk 0:01:47]}  Rc4 {[%clk 0:02:02]} 29. Rf1 {[%clk 0:01:47]}  Rxd4 {[%clk 0:02:00]} 30. Rxf2 {[%clk 0:01:47]}  Rb4+ {[%clk 0:02:01]} 31. Ka3 {[%clk 0:01:46]}  Rxb5 {[%clk 0:02:02]} 32. Bb3 {[%clk 0:01:45]}  Kg7 {[%clk 0:02:01]} 33. Rf4 {[%clk 0:01:44]}  Rc7 {[%clk 0:02:01]} 34. Ka4 {[%clk 0:01:43]}  Rbc5 {[%clk 0:02:01]} 35. Kb4 {[%clk 0:01:43]}  a5+ {[%clk 0:02:01]} 36. Ka3 {[%clk 0:01:42]}  Ba6 {[%clk 0:02:02]} 37. Rd4 {[%clk 0:01:41]}  Bc4 {[%clk 0:02:02]} 38. Ka4 {[%clk 0:01:38]}  Bxb3+ {[%clk 0:02:01]} 39. axb3 {[%clk 0:01:39]}  Rc3 {[%clk 0:02:01]} 40. Rxd5 {[%clk 0:01:39]}  Rxg3 {[%clk 0:02:01]} 41. Rxa5 {[%clk 0:01:39]}  Rg4+ {[%clk 0:02:01]} 42. b4 {[%clk 0:01:39]}  Rxh4 {[%clk 0:02:01]} 43. Rb5 {[%clk 0:01:38]}  Rcc4 {[%clk 0:02:01]} 44. Rb8 {[%clk 0:01:38]}  g5 {[%clk 0:02:01]} 45. Ka5 {[%clk 0:01:38]}  g4 {[%clk 0:02:01]} 46. b5 {[%clk 0:01:38]}  g3 {[%clk 0:02:02]} 47. b6 {[%clk 0:01:38]}  g2 {[%clk 0:02:02]} 48. b7 {[%clk 0:01:39]}  Ra4+ {[%clk 0:02:02]} 49. Kb6 {[%clk 0:01:38]}  Rab4+ {[%clk 0:02:01]} 50. Kc5 {[%clk 0:01:38]}  g1=Q+ {[%clk 0:02:01]} 51. Kc6 {[%clk 0:01:38]}  Qg2+ {[%clk 0:02:01]} 52. Kd6 {[%clk 0:01:30]}  Rhd4+ {[%clk 0:02:02]} 0-1


[Site "https://www.chess.com"]

[Event "Titled Tuesday Blitz May 9 Early 2023"]
[White "Mirzoev, Azer"]
[Black "koncheto"]
[WhiteFideId "13400304"]
[WhiteElo "2525"]
[BlackElo "2485"]
[Result "1-0"]
[Round "03"]
[TimeControl "180+2"]
[Date "2023.05.09"]
[WhiteClock "0:00:03"]
[BlackClock "0:00:02"]

1. c4 {[%clk 0:02:58]}  Nf6 {[%clk 0:03:00]} 2. Nc3 {[%clk 0:02:58]}  e6 {[%clk 0:02:57]} 3. e4 {[%clk 0:02:57]}  d5 {[%clk 0:02:57]} 4. e5 {[%clk 0:02:58]}  d4 {[%clk 0:02:58]} 5. exf6 {[%clk 0:02:57]}  dxc3 {[%clk 0:02:58]} 6. bxc3 {[%clk 0:02:58]}  Qxf6 {[%clk 0:02:58]} 7. Nf3 {[%clk 0:02:57]}  b6 {[%clk 0:02:58]} 8. d4 {[%clk 0:02:51]}  h6 {[%clk 0:02:57]} 9. Be2 {[%clk 0:02:43]}  Bb7 {[%clk 0:02:58]} 10. O-O {[%clk 0:02:43]}  Bd6 {[%clk 0:02:54]} 11. a4 {[%clk 0:02:43]}  a5 {[%clk 0:02:50]} 12. Nd2 {[%clk 0:02:35]}  Nd7 {[%clk 0:02:17]} 13. Bf3 {[%clk 0:02:34]}  Bxf3 {[%clk 0:02:16]} 14. Nxf3 {[%clk 0:02:34]}  O-O {[%clk 0:02:16]} 15. Re1 {[%clk 0:02:32]}  Rfd8 {[%clk 0:02:10]} 16. Qe2 {[%clk 0:02:28]}  e5 {[%clk 0:01:48]} 17. Be3 {[%clk 0:02:15]}  Re8 {[%clk 0:01:28]} 18. Qc2 {[%clk 0:02:10]}  Rad8 {[%clk 0:01:25]} 19. h3 {[%clk 0:02:07]}  Qe6 {[%clk 0:01:14]} 20. Qb3 {[%clk 0:01:55]}  f5 {[%clk 0:01:08]} 21. dxe5 {[%clk 0:01:37]}  Nxe5 {[%clk 0:01:07]} 22. Nxe5 {[%clk 0:01:30]}  Bxe5 {[%clk 0:00:56]} 23. Bd4 {[%clk 0:01:25]}  Qf6 {[%clk 0:00:26]} 24. c5+ {[%clk 0:01:21]}  Kh7 {[%clk 0:00:17]} 25. Rxe5 {[%clk 0:01:14]}  Rxe5 {[%clk 0:00:18]} 26. cxb6 {[%clk 0:01:13]}  cxb6 {[%clk 0:00:15]} 27. Rb1 {[%clk 0:01:06]}  Qe6 {[%clk 0:00:11]} 28. Bxe5 {[%clk 0:01:00]}  Qxe5 {[%clk 0:00:12]} 29. Qxb6 {[%clk 0:00:59]}  Rd2 {[%clk 0:00:10]} 30. c4 {[%clk 0:00:46]}  Rc2 {[%clk 0:00:06]} 31. Qb5 {[%clk 0:00:19]}  Qf4 {[%clk 0:00:05]} 32. Rf1 {[%clk 0:00:13]}  Rxc4 {[%clk 0:00:05]} 33. Qxa5 {[%clk 0:00:13]}  Rxa4 {[%clk 0:00:05]} 34. Qb6 {[%clk 0:00:10]}  Re4 {[%clk 0:00:05]} 35. Qc6 {[%clk 0:00:09]}  Qg5 {[%clk 0:00:05]} 36. Qd5 {[%clk 0:00:08]}  Qf6 {[%clk 0:00:05]} 37. Rd1 {[%clk 0:00:07]}  Re5 {[%clk 0:00:05]} 38. Qd3 {[%clk 0:00:07]}  Qe6 {[%clk 0:00:05]} 39. g3 {[%clk 0:00:06]}  Kh8 {[%clk 0:00:04]} 40. Kg2 {[%clk 0:00:06]}  Re4 {[%clk 0:00:04]} 41. Qf3 {[%clk 0:00:06]}  Re5 {[%clk 0:00:04]} 42. h4 {[%clk 0:00:06]}  Qf6 {[%clk 0:00:03]} 43. Rd3 {[%clk 0:00:06]}  Qe6 {[%clk 0:00:03]} 44. Rd8+ {[%clk 0:00:05]}  Kh7 {[%clk 0:00:03]} 45. Qa8 {[%clk 0:00:06]}  Qf7 {[%clk 0:00:02]} 46. Rh8+ {[%clk 0:00:05]}  Kg6 {[%clk 0:00:02]} 47. Rf8 {[%clk 0:00:05]}  Qd5+ {[%clk 0:00:02]} 48. Qxd5 {[%clk 0:00:04]}  Rxd5 {[%clk 0:00:03]} 49. Kf3 {[%clk 0:00:05]}  Rd3+ {[%clk 0:00:03]} 50. Kf4 {[%clk 0:00:05]}  Rd2 {[%clk 0:00:03]} 51. f3 {[%clk 0:00:04]}  Rd6 {[%clk 0:00:03]} 52. Rxf5 {[%clk 0:00:02]}  Rd4+ {[%clk 0:00:04]} 53. Ke3 {[%clk 0:00:02]}  Ra4 {[%clk 0:00:03]} 54. Rf4 {[%clk 0:00:02]}  Ra3+ {[%clk 0:00:03]} 55. Kf2 {[%clk 0:00:03]}  Ra2+ {[%clk 0:00:03]} 56. Kg1 {[%clk 0:00:03]}  Ra3 {[%clk 0:00:04]} 57. Kg2 {[%clk 0:00:03]}  Ra2+ {[%clk 0:00:04]} 58. Kh3 {[%clk 0:00:04]}  Ra3 {[%clk 0:00:05]} 59. g4 {[%clk 0:00:04]}  Rb3 {[%clk 0:00:03]} 60. h5+ {[%clk 0:00:04]}  Kh7 {[%clk 0:00:03]} 61. Kg3 {[%clk 0:00:04]}  Kg8 {[%clk 0:00:03]} 62. Re4 {[%clk 0:00:04]}  Kf7 {[%clk 0:00:03]} 63. Kf4 {[%clk 0:00:04]}  Rb5 {[%clk 0:00:02]} 64. Rd4 {[%clk 0:00:04]}  Rb3 {[%clk 0:00:02]} 65. Ke4 {[%clk 0:00:04]}  Kf6 {[%clk 0:00:03]} 66. Rd6+ {[%clk 0:00:03]}  Kf7 {[%clk 0:00:03]} 67. f4 {[%clk 0:00:03]}  Rb4+ {[%clk 0:00:03]} 68. Rd4 {[%clk 0:00:04]}  Rb5 {[%clk 0:00:04]} 69. Rd5 {[%clk 0:00:04]}  Rb4+ {[%clk 0:00:04]} 70. Ke5 {[%clk 0:00:04]}  Rb6 {[%clk 0:00:04]} 71. Kf5 {[%clk 0:00:04]}  Ra6 {[%clk 0:00:04]} 72. Rd7+ {[%clk 0:00:04]}  Kf8 {[%clk 0:00:05]} 73. Rc7 {[%clk 0:00:04]}  Rb6 {[%clk 0:00:05]} 74. Ra7 {[%clk 0:00:04]}  Rc6 {[%clk 0:00:06]} 75. g5 {[%clk 0:00:04]}  Rc5+ {[%clk 0:00:05]} 76. Kg6 {[%clk 0:00:04]}  Rc6+ {[%clk 0:00:05]} 77. Kh7 {[%clk 0:00:04]}  hxg5 {[%clk 0:00:04]} 78. fxg5 {[%clk 0:00:04]}  Rc5 {[%clk 0:00:02]} 79. Rxg7 {[%clk 0:00:03]} 1-0


[Site "https://www.chess.com"]

[Event "Titled Tuesday Blitz May 9 Early 2023"]
[White "Rodriguez, Santiago"]
[Black "Aaditya Dhingra"]
[WhiteFideId "3000591"]
[BlackFideId "25678191"]
[WhiteElo "2249"]
[BlackElo "2083"]
[Result "1-0"]
[Round "03"]
[TimeControl "180+2"]
[Date "2023.05.09"]
[WhiteClock "0:01:18"]
[BlackClock "0:00:58"]

1. d4 {[%clk 0:03:00]}  d5 {[%clk 0:02:57]} 2. Bf4 {[%clk 0:03:00]}  Nf6 {[%clk 0:02:57]} 3. e3 {[%clk 0:03:00]}  c5 {[%clk 0:02:56]} 4. c3 {[%clk 0:03:00]}  Nc6 {[%clk 0:02:56]} 5. Nd2 {[%clk 0:02:59]}  e6 {[%clk 0:02:54]} 6. Bd3 {[%clk 0:02:59]}  Bd6 {[%clk 0:02:53]} 7. Bxd6 {[%clk 0:02:58]}  Qxd6 {[%clk 0:02:54]} 8. f4 {[%clk 0:02:59]}  cxd4 {[%clk 0:02:51]} 9. cxd4 {[%clk 0:02:58]}  Bd7 {[%clk 0:02:52]} 10. Ngf3 {[%clk 0:02:57]}  Nb4 {[%clk 0:02:48]} 11. Bb1 {[%clk 0:02:28]}  Bb5 {[%clk 0:02:40]} 12. Ne5 {[%clk 0:02:28]}  O-O {[%clk 0:02:37]} 13. a3 {[%clk 0:02:27]}  Nc6 {[%clk 0:02:35]} 14. Kf2 {[%clk 0:02:26]}  Rac8 {[%clk 0:02:11]} 15. g4 {[%clk 0:02:24]}  Ne7 {[%clk 0:02:05]} 16. g5 {[%clk 0:02:23]}  Nd7 {[%clk 0:02:03]} 17. Ndf3 {[%clk 0:02:16]}  Nf5 {[%clk 0:02:01]} 18. Nxd7 {[%clk 0:01:57]}  Qxd7 {[%clk 0:01:57]} 19. Ne5 {[%clk 0:01:57]}  Qe7 {[%clk 0:01:57]} 20. Bxf5 {[%clk 0:01:54]}  exf5 {[%clk 0:01:56]} 21. Qb3 {[%clk 0:01:53]}  Bc4 {[%clk 0:01:55]} 22. Qb4 {[%clk 0:01:53]}  Qe6 {[%clk 0:01:44]} 23. b3 {[%clk 0:01:49]}  Ba6 {[%clk 0:01:43]} 24. Rac1 {[%clk 0:01:47]}  Rfe8 {[%clk 0:01:37]} 25. h4 {[%clk 0:01:30]}  f6 {[%clk 0:01:32]} 26. gxf6 {[%clk 0:01:30]}  gxf6 {[%clk 0:01:31]} 27. Rhg1+ {[%clk 0:01:29]}  Kh8 {[%clk 0:01:29]} 28. Rxc8 {[%clk 0:01:28]}  Rxc8 {[%clk 0:00:58]} 29. Qd6 {[%clk 0:01:18]} 1-0


[Site "https://www.chess.com"]

[Event "Titled Tuesday Blitz May 9 Early 2023"]
[White "Matinian, Nikita"]
[Black "Ljukin, Sergei"]
[WhiteFideId "24129100"]
[BlackFideId "14102200"]
[WhiteElo "2422"]
[BlackElo "2312"]
[Result "1-0"]
[Round "03"]
[TimeControl "180+2"]
[Date "2023.05.09"]
[WhiteClock "0:00:34"]
[BlackClock "0:00:00"]

1. e4 {[%clk 0:02:54]}  e6 {[%clk 0:02:59]} 2. d4 {[%clk 0:02:53]}  d5 {[%clk 0:02:58]} 3. Nc3 {[%clk 0:02:54]}  Bb4 {[%clk 0:02:58]} 4. Ne2 {[%clk 0:02:53]}  Nc6 {[%clk 0:02:57]} 5. e5 {[%clk 0:02:50]}  f6 {[%clk 0:02:55]} 6. f4 {[%clk 0:02:40]}  fxe5 {[%clk 0:02:55]} 7. fxe5 {[%clk 0:02:41]}  Nge7 {[%clk 0:02:55]} 8. Bg5 {[%clk 0:02:35]}  O-O {[%clk 0:02:52]} 9. Qd3 {[%clk 0:02:35]}  Bd7 {[%clk 0:02:45]} 10. h4 {[%clk 0:02:32]}  h6 {[%clk 0:02:38]} 11. Bd2 {[%clk 0:02:30]}  Nf5 {[%clk 0:01:57]} 12. h5 {[%clk 0:02:18]}  Be7 {[%clk 0:01:55]} 13. a3 {[%clk 0:02:07]}  Bh4+ {[%clk 0:01:49]} 14. g3 {[%clk 0:02:06]}  Bg5 {[%clk 0:01:27]} 15. O-O-O {[%clk 0:02:00]}  Bxd2+ {[%clk 0:01:27]} 16. Qxd2 {[%clk 0:01:55]}  Qg5 {[%clk 0:01:25]} 17. Qxg5 {[%clk 0:01:54]}  hxg5 {[%clk 0:01:25]} 18. Bh3 {[%clk 0:01:54]}  g4 {[%clk 0:01:17]} 19. Bxg4 {[%clk 0:01:44]}  Ne3 {[%clk 0:01:17]} 20. Bh3 {[%clk 0:01:45]}  Nxd1 {[%clk 0:01:16]} 21. Kxd1 {[%clk 0:01:45]}  Rad8 {[%clk 0:00:51]} 22. Kd2 {[%clk 0:01:45]}  Rf3 {[%clk 0:00:50]} 23. Bg4 {[%clk 0:01:42]}  Rf7 {[%clk 0:00:37]} 24. Ke3 {[%clk 0:01:42]}  Na5 {[%clk 0:00:21]} 25. b3 {[%clk 0:01:42]}  c5 {[%clk 0:00:21]} 26. dxc5 {[%clk 0:01:41]}  Nc6 {[%clk 0:00:21]} 27. Nd4 {[%clk 0:01:27]}  Nxe5 {[%clk 0:00:19]} 28. Bh3 {[%clk 0:01:26]}  Re8 {[%clk 0:00:18]} 29. Nce2 {[%clk 0:01:07]}  Nc6 {[%clk 0:00:18]} 30. b4 {[%clk 0:00:59]}  e5 {[%clk 0:00:17]} 31. Nxc6 {[%clk 0:00:58]}  bxc6 {[%clk 0:00:17]} 32. Bxd7 {[%clk 0:00:56]}  Rxd7 {[%clk 0:00:17]} 33. g4 {[%clk 0:00:55]}  Rf7 {[%clk 0:00:17]} 34. g5 {[%clk 0:00:52]}  Ref8 {[%clk 0:00:17]} 35. Rh3 {[%clk 0:00:52]}  Rf1 {[%clk 0:00:16]} 36. h6 {[%clk 0:00:51]}  gxh6 {[%clk 0:00:15]} 37. Rxh6 {[%clk 0:00:50]}  R8f3+ {[%clk 0:00:09]} 38. Kd2 {[%clk 0:00:51]}  R1f2 {[%clk 0:00:09]} 39. Rxc6 {[%clk 0:00:48]}  d4 {[%clk 0:00:09]} 40. Rf6 {[%clk 0:00:41]}  Rxf6 {[%clk 0:00:07]} 41. gxf6 {[%clk 0:00:42]}  Rxf6 {[%clk 0:00:07]} 42. Ng3 {[%clk 0:00:36]}  Kf7 {[%clk 0:00:02]} 43. Ne4 {[%clk 0:00:36]}  Rg6 {[%clk 0:00:00]} 44. b5 {[%clk 0:00:34]} 1-0


[Site "https://www.chess.com"]

[Event "Titled Tuesday Blitz May 9 Early 2023"]
[White "Girya, Olga"]
[Black "Liu, Casper"]
[WhiteFideId "4195752"]
[BlackFideId "1454153"]
[WhiteElo "2263"]
[BlackElo "2221"]
[Result "1-0"]
[Round "03"]
[TimeControl "180+2"]
[Date "2023.05.09"]
[WhiteClock "0:00:55"]
[BlackClock "0:00:54"]

1. d4 {[%clk 0:03:00]}  c5 {[%clk 0:02:57]} 2. d5 {[%clk 0:02:57]}  g6 {[%clk 0:02:57]} 3. e4 {[%clk 0:02:56]}  Bg7 {[%clk 0:02:58]} 4. Nf3 {[%clk 0:02:56]}  d6 {[%clk 0:02:58]} 5. Be2 {[%clk 0:02:40]}  Nf6 {[%clk 0:02:56]} 6. Nc3 {[%clk 0:02:39]}  Bg4 {[%clk 0:02:57]} 7. Nd2 {[%clk 0:02:38]}  Bxe2 {[%clk 0:02:55]} 8. Qxe2 {[%clk 0:02:39]}  O-O {[%clk 0:02:56]} 9. O-O {[%clk 0:02:38]}  e6 {[%clk 0:02:56]} 10. Nc4 {[%clk 0:02:20]}  exd5 {[%clk 0:02:47]} 11. exd5 {[%clk 0:02:21]}  Re8 {[%clk 0:02:48]} 12. Qf3 {[%clk 0:02:21]}  Nbd7 {[%clk 0:02:38]} 13. Bf4 {[%clk 0:02:16]}  Ne5 {[%clk 0:02:35]} 14. Bxe5 {[%clk 0:02:09]}  dxe5 {[%clk 0:02:36]} 15. d6 {[%clk 0:02:06]}  Qd7 {[%clk 0:02:36]} 16. Rfe1 {[%clk 0:02:03]}  Nh5 {[%clk 0:02:27]} 17. a4 {[%clk 0:01:50]}  f5 {[%clk 0:02:12]} 18. Qd5+ {[%clk 0:01:49]}  Kh8 {[%clk 0:02:12]} 19. Nxe5 {[%clk 0:01:45]}  Nf4 {[%clk 0:02:05]} 20. Nxd7 {[%clk 0:01:33]}  Nxd5 {[%clk 0:02:04]} 21. Nxd5 {[%clk 0:01:32]}  Red8 {[%clk 0:02:02]} 22. Nxc5 {[%clk 0:01:31]}  Rxd6 {[%clk 0:02:02]} 23. Nf4 {[%clk 0:01:25]}  Rd2 {[%clk 0:02:02]} 24. Re2 {[%clk 0:01:23]}  Rad8 {[%clk 0:01:59]} 25. Nce6 {[%clk 0:01:15]}  Rxe2 {[%clk 0:01:58]} 26. Nxe2 {[%clk 0:01:12]}  Rd2 {[%clk 0:01:59]} 27. Nc3 {[%clk 0:00:57]}  Bh6 {[%clk 0:00:54]} 28. Rd1 {[%clk 0:00:55]} 1-0


[Site "https://www.chess.com"]

[Event "Titled Tuesday Blitz May 9 Early 2023"]
[White "Weishaeutel, Moritz"]
[Black "Dudzinski, Pawel"]
[WhiteFideId "12967300"]
[BlackFideId "1117890"]
[WhiteElo "2301"]
[BlackElo "2099"]
[Result "1-0"]
[Round "03"]
[TimeControl "180+2"]
[Date "2023.05.09"]
[WhiteClock "0:00:05"]
[BlackClock "0:00:01"]

1. e4 {[%clk 0:03:00]}  c6 {[%clk 0:02:59]} 2. Nc3 {[%clk 0:03:00]}  d5 {[%clk 0:03:00]} 3. Nf3 {[%clk 0:03:00]}  dxe4 {[%clk 0:03:00]} 4. Nxe4 {[%clk 0:03:01]}  Nf6 {[%clk 0:03:01]} 5. Qe2 {[%clk 0:03:01]}  Nxe4 {[%clk 0:03:01]} 6. Qxe4 {[%clk 0:03:02]}  Qa5 {[%clk 0:03:01]} 7. Bc4 {[%clk 0:02:54]}  Bf5 {[%clk 0:03:01]} 8. Qf4 {[%clk 0:02:55]}  e6 {[%clk 0:03:02]} 9. O-O {[%clk 0:02:51]}  Be7 {[%clk 0:03:02]} 10. Nd4 {[%clk 0:02:45]}  Bg6 {[%clk 0:02:58]} 11. Re1 {[%clk 0:02:34]}  O-O {[%clk 0:02:41]} 12. Qg3 {[%clk 0:02:22]}  Bf6 {[%clk 0:02:33]} 13. Nf3 {[%clk 0:02:10]}  Bxc2 {[%clk 0:02:29]} 14. Ne5 {[%clk 0:01:39]}  Bg6 {[%clk 0:01:17]} 15. a3 {[%clk 0:01:29]}  Qc7 {[%clk 0:01:08]} 16. d4 {[%clk 0:01:26]}  Nd7 {[%clk 0:00:49]} 17. Bf4 {[%clk 0:01:09]}  Bxe5 {[%clk 0:00:47]} 18. dxe5 {[%clk 0:01:05]}  Nb6 {[%clk 0:00:45]} 19. Bb3 {[%clk 0:01:04]}  Rad8 {[%clk 0:00:39]} 20. Rad1 {[%clk 0:00:39]}  Rxd1 {[%clk 0:00:38]} 21. Rxd1 {[%clk 0:00:40]}  Rd8 {[%clk 0:00:38]} 22. Rd6 {[%clk 0:00:41]}  Nc8 {[%clk 0:00:37]} 23. Rxd8+ {[%clk 0:00:33]}  Qxd8 {[%clk 0:00:38]} 24. h4 {[%clk 0:00:33]}  h5 {[%clk 0:00:37]} 25. Bxe6 {[%clk 0:00:31]}  Ne7 {[%clk 0:00:23]} 26. Bb3 {[%clk 0:00:22]}  Kh7 {[%clk 0:00:20]} 27. Bg5 {[%clk 0:00:19]}  Qd7 {[%clk 0:00:20]} 28. Qf3 {[%clk 0:00:13]}  Nd5 {[%clk 0:00:19]} 29. Be3 {[%clk 0:00:06]}  a6 {[%clk 0:00:17]} 30. Bc5 {[%clk 0:00:06]}  Qd8 {[%clk 0:00:13]} 31. Bd6 {[%clk 0:00:07]}  Qxh4 {[%clk 0:00:13]} 32. Bxd5 {[%clk 0:00:06]}  cxd5 {[%clk 0:00:12]} 33. Qxd5 {[%clk 0:00:07]}  Qe4 {[%clk 0:00:10]} 34. Qd2 {[%clk 0:00:05]}  Qb1+ {[%clk 0:00:10]} 35. Kh2 {[%clk 0:00:05]}  Qe4 {[%clk 0:00:10]} 36. f3 {[%clk 0:00:06]}  Qf5 {[%clk 0:00:09]} 37. Qf2 {[%clk 0:00:06]}  Qg5 {[%clk 0:00:09]} 38. Qd4 {[%clk 0:00:05]}  Bf5 {[%clk 0:00:08]} 39. Bc7 {[%clk 0:00:03]}  h4 {[%clk 0:00:08]} 40. Bd6 {[%clk 0:00:03]}  h3 {[%clk 0:00:07]} 41. gxh3 {[%clk 0:00:03]}  Qh5 {[%clk 0:00:07]} 42. h4 {[%clk 0:00:02]}  Qxf3 {[%clk 0:00:08]} 43. Qd2 {[%clk 0:00:02]}  Qh3+ {[%clk 0:00:08]} 44. Kg1 {[%clk 0:00:01]}  Be4 {[%clk 0:00:08]} 45. Qh2 {[%clk 0:00:01]}  Qg4+ {[%clk 0:00:09]} 46. Kf2 {[%clk 0:00:01]}  Qf3+ {[%clk 0:00:09]} 47. Ke1 {[%clk 0:00:02]}  Qe3+ {[%clk 0:00:09]} 48. Qe2 {[%clk 0:00:02]}  Qc1+ {[%clk 0:00:09]} 49. Kf2 {[%clk 0:00:02]}  Bg6 {[%clk 0:00:09]} 50. Qe3 {[%clk 0:00:02]}  Qxb2+ {[%clk 0:00:10]} 51. Kg3 {[%clk 0:00:03]}  Qb1 {[%clk 0:00:09]} 52. e6 {[%clk 0:00:03]}  fxe6 {[%clk 0:00:08]} 53. Qxe6 {[%clk 0:00:04]}  Qd3+ {[%clk 0:00:07]} 54. Kf4 {[%clk 0:00:04]}  Qxa3 {[%clk 0:00:07]} 55. Bxa3 {[%clk 0:00:03]}  b5 {[%clk 0:00:03]} 56. Bb4 {[%clk 0:00:03]}  Bf7 {[%clk 0:00:03]} 57. Qe5 {[%clk 0:00:04]}  Bg6 {[%clk 0:00:03]} 58. Bc3 {[%clk 0:00:04]}  Kh6 {[%clk 0:00:02]} 59. Qxg7+ {[%clk 0:00:05]}  Kh5 {[%clk 0:00:01]} 60. Qh8+ {[%clk 0:00:05]} 1-0


[Site "https://www.chess.com"]

[Event "Titled Tuesday Blitz May 9 Early 2023"]
[White "Manukian, Artak"]
[Black "Aggelis, Nikolaos"]
[WhiteFideId "13301373"]
[BlackFideId "4213220"]
[WhiteElo "2130"]
[BlackElo "2189"]
[Result "1/2-1/2"]
[Round "03"]
[TimeControl "180+2"]
[Date "2023.05.09"]
[WhiteClock "0:00:29"]
[BlackClock "0:00:59"]

1. e4 {[%clk 0:03:00]}  c6 {[%clk 0:03:00]} 2. d4 {[%clk 0:03:00]}  d5 {[%clk 0:03:00]} 3. e5 {[%clk 0:03:00]}  c5 {[%clk 0:03:00]} 4. dxc5 {[%clk 0:03:00]}  e6 {[%clk 0:03:00]} 5. a3 {[%clk 0:02:58]}  Bxc5 {[%clk 0:03:00]} 6. b4 {[%clk 0:02:56]}  Bb6 {[%clk 0:02:59]} 7. c4 {[%clk 0:02:56]}  dxc4 {[%clk 0:02:58]} 8. Qxd8+ {[%clk 0:02:55]}  Kxd8 {[%clk 0:02:59]} 9. Bxc4 {[%clk 0:02:54]}  Nc6 {[%clk 0:02:56]} 10. Bb2 {[%clk 0:02:51]}  Bd4 {[%clk 0:02:55]} 11. Bxd4 {[%clk 0:02:44]}  Nxd4 {[%clk 0:02:56]} 12. Kd2 {[%clk 0:02:39]}  b5 {[%clk 0:02:51]} 13. Kc3 {[%clk 0:02:16]}  bxc4 {[%clk 0:02:46]} 14. Kxd4 {[%clk 0:02:15]}  Bb7 {[%clk 0:02:47]} 15. Nf3 {[%clk 0:02:12]}  Ne7 {[%clk 0:02:38]} 16. Nbd2 {[%clk 0:01:52]}  Kc7 {[%clk 0:02:26]} 17. Nxc4 {[%clk 0:01:45]}  Rhd8+ {[%clk 0:02:21]} 18. Kc3 {[%clk 0:01:21]}  Bxf3 {[%clk 0:02:18]} 19. gxf3 {[%clk 0:01:20]}  Rd5 {[%clk 0:01:45]} 20. Rhd1 {[%clk 0:01:10]}  Rad8 {[%clk 0:01:45]} 21. Rxd5 {[%clk 0:01:07]}  Nxd5+ {[%clk 0:01:46]} 22. Kb3 {[%clk 0:01:05]}  Nf4 {[%clk 0:01:44]} 23. Nd6 {[%clk 0:00:58]}  f6 {[%clk 0:01:43]} 24. Rc1+ {[%clk 0:00:56]}  Kd7 {[%clk 0:01:36]} 25. Nb7 {[%clk 0:00:55]}  Rc8 {[%clk 0:01:31]} 26. Nc5+ {[%clk 0:00:51]}  Ke7 {[%clk 0:01:30]} 27. exf6+ {[%clk 0:00:50]}  gxf6 {[%clk 0:01:31]} 28. a4 {[%clk 0:00:46]}  Nd5 {[%clk 0:01:21]} 29. Rg1 {[%clk 0:00:41]}  Kf7 {[%clk 0:01:07]} 30. Ne4 {[%clk 0:00:40]}  Rb8 {[%clk 0:01:03]} 31. b5 {[%clk 0:00:40]}  a6 {[%clk 0:01:03]} 32. Kc4 {[%clk 0:00:35]}  Nb6+ {[%clk 0:01:02]} 33. Kb4 {[%clk 0:00:34]}  Nd5+ {[%clk 0:01:00]} 34. Kc4 {[%clk 0:00:32]}  Nb6+ {[%clk 0:00:59]} 35. Kb4 {[%clk 0:00:32]}  Nd5+ {[%clk 0:00:59]} 36. Kc4 {[%clk 0:00:29]} 1/2-1/2


[Site "https://www.chess.com"]